[Event "*** Titled Tuesday 3|2 Blitz"]
[Site "Chess.com"]
[Date "2016.10.04"]
[Round "2"]
[White "Gergo85"]
[Black "Mornar1951"]
[Result "0-1"]
[WhiteElo "2443"]
[BlackElo "2587"]
[TimeControl "180+2"]
[EndTime "11:24:02 PDT"]
[Termination "Mornar1951 won by resignation"]

1. e4 {[%clk 0:03:01.9]} 1... e5 {[%clk 0:02:57.7]} 2. Nc3 {[%clk 0:03:01.8]}
2... Nf6 {[%clk 0:02:58.6]} 3. g3 {[%clk 0:03:03.1]} 3... d5 {[%clk 0:02:57]} 4.
exd5 {[%clk 0:03:03.5]} 4... Nxd5 {[%clk 0:02:58.9]} 5. Bg2 {[%clk 0:03:05.2]}
5... Nxc3 {[%clk 0:03:00.3]} 6. bxc3 {[%clk 0:03:07]} 6... Nc6 {[%clk
0:03:01.4]} 7. Nf3 {[%clk 0:03:04.6]} 7... Bc5 {[%clk 0:03:02.8]} 8. O-O {[%clk
0:03:05.4]} 8... O-O {[%clk 0:03:04.4]} 9. d3 {[%clk 0:03:02.7]} 9... Bg4 {[%clk
0:02:55.9]} 10. Qe1 {[%clk 0:03:03.4]} 10... Re8 {[%clk 0:02:52.2]} 11. Rb1
{[%clk 0:03:02.8]} 11... Bb6 {[%clk 0:02:52.4]} 12. Qe4 {[%clk 0:03:01.4]} 12...
Qd7 {[%clk 0:02:50.6]} 13. Re1 {[%clk 0:02:53.3]} 13... Bh3 {[%clk 0:02:48.2]}
14. Bh1 {[%clk 0:02:54]} 14... Bf5 {[%clk 0:02:42.4]} 15. Qa4 {[%clk 0:02:41.4]}
15... Rad8 {[%clk 0:02:39.4]} 16. Be3 {[%clk 0:02:37.6]} 16... f6 {[%clk
0:02:22.2]} 17. Nd2 {[%clk 0:02:35.2]} 17... Be6 {[%clk 0:02:18.9]} 18. Nc4
{[%clk 0:02:27.7]} 18... Bd5 {[%clk 0:02:15.8]} 19. Bxb6 {[%clk 0:02:20.6]}
19... axb6 {[%clk 0:02:16.1]} 20. Ne3 {[%clk 0:02:22.2]} 20... Bxh1 {[%clk
0:02:16]} 21. Kxh1 {[%clk 0:02:23.3]} 21... Ne7 {[%clk 0:02:11.1]} 22. Qb3+
{[%clk 0:02:16.8]} 22... Kf8 {[%clk 0:02:07.4]} 23. a4 {[%clk 0:02:16.2]} 23...
Nc6 {[%clk 0:02:01.2]} 24. Kg1 {[%clk 0:02:04.2]} 24... Qe6 {[%clk 0:01:57.1]}
25. Qxe6 {[%clk 0:02:00.3]} 25... Rxe6 {[%clk 0:01:57.5]} 26. Nc4 {[%clk
0:02:01.9]} 26... Ra8 {[%clk 0:01:55.1]} 27. Ra1 {[%clk 0:01:57.4]} 27... Kf7
{[%clk 0:01:53.2]} 28. Reb1 {[%clk 0:01:57.1]} 28... Ra7 {[%clk 0:01:53.1]} 29.
Rb5 {[%clk 0:01:54.1]} 29... Re8 {[%clk 0:01:53.2]} 30. Nb2 {[%clk 0:01:16.8]}
30... Rea8 {[%clk 0:01:51.7]} 31. Re1 {[%clk 0:01:17.8]} 31... Ra5 {[%clk
0:01:46.6]} 32. Rxa5 {[%clk 0:01:14]} 32... Rxa5 {[%clk 0:01:45.6]} 33. Kf1
{[%clk 0:01:15.3]} 33... Ne7 {[%clk 0:01:34.5]} 34. Ke2 {[%clk 0:01:15.1]} 34...
Nf5 {[%clk 0:01:32]} 35. Kd2 {[%clk 0:01:15]} 35... Nd6 {[%clk 0:01:32.9]} 36.
c4 {[%clk 0:01:13.2]} 36... g5 {[%clk 0:01:30.1]} 37. Kc3 {[%clk 0:01:14]} 37...
h5 {[%clk 0:01:29.3]} 38. Kb4 {[%clk 0:01:13.9]} 38... Nf5 {[%clk 0:01:25.3]}
39. Nd1 {[%clk 0:01:08.5]} 39... Nd4 {[%clk 0:01:24.6]} 40. Ne3 {[%clk
0:01:09.6]} 40... c6 {[%clk 0:00:58]} 41. c3 {[%clk 0:01:08.3]} 41... Ne6 {[%clk
0:00:55.2]} 42. d4 {[%clk 0:00:30.7]} 42... exd4 {[%clk 0:00:53.2]} 43. cxd4
{[%clk 0:00:31.7]} 43... Nxd4 {[%clk 0:00:54]} 44. Rd1 {[%clk 0:00:32.5]} 44...
Ke6 {[%clk 0:00:42.6]} 45. c5 {[%clk 0:00:20.2]} 45... Nf3 {[%clk 0:00:22.9]}
46. cxb6 {[%clk 0:00:21.2]} 46... Ra6 {[%clk 0:00:22.8]} 47. Nc4 {[%clk
0:00:22.2]} 47... Nxh2 {[%clk 0:00:21.4]} 48. a5 {[%clk 0:00:22]} 48... Ng4
{[%clk 0:00:21.7]} 49. Rd2 {[%clk 0:00:21.1]} 49... h4 {[%clk 0:00:19.5]} 50.
gxh4 {[%clk 0:00:18.5]} 50... gxh4 {[%clk 0:00:21.4]} 51. Nd6 {[%clk 0:00:15]}
51... h3 {[%clk 0:00:21.3]} 52. Nxb7 {[%clk 0:00:15.6]} 52... h2 {[%clk
0:00:20.8]} 53. Re2+ {[%clk 0:00:16.4]} 53... Kd5 {[%clk 0:00:14]} 54. Re1
{[%clk 0:00:17.2]} 54... Nxf2 {[%clk 0:00:14.9]} 55. Nc5 {[%clk 0:00:18.3]}
55... Ra8 {[%clk 0:00:14]} 56. a6 {[%clk 0:00:19.4]} 56... Rxa6 {[%clk
0:00:14.4]} 57. Rd1+ {[%clk 0:00:20.7]} 57... Nxd1 {[%clk 0:00:13.2]} 58. Nxa6
{[%clk 0:00:21.9]} 58... h1=Q {[%clk 0:00:14.2]} 59. b7 {[%clk 0:00:23.4]} 59...
Qe1+ {[%clk 0:00:14.8]} 60. Ka4 {[%clk 0:00:24.3]} 60... Nc3+ {[%clk 0:00:15.1]}
61. Ka5 {[%clk 0:00:25.8]} 61... Nb5+ {[%clk 0:00:15.4]} 62. Kb6 {[%clk
0:00:27.1]} 62... Qe3+ {[%clk 0:00:15.8]} 63. Ka5 {[%clk 0:00:26.6]} 63... Qa7
{[%clk 0:00:15.4]} 64. b8=Q {[%clk 0:00:26.5]} 64... Qxb8 {[%clk 0:00:16.7]} 65.
Nxb8 {[%clk 0:00:28.4]} 65... f5 {[%clk 0:00:18.3]} 66. Kb4 {[%clk 0:00:27.6]}
66... f4 {[%clk 0:00:19.1]} 67. Nd7 {[%clk 0:00:17.9]} 67... f3 {[%clk
0:00:19.7]} 68. Nf6+ {[%clk 0:00:18.9]} 68... Kd4 {[%clk 0:00:21]} 69. Ng4
{[%clk 0:00:19.7]} 69... Nd6 {[%clk 0:00:21.9]} 70. Kb3 {[%clk 0:00:19.6]} 70...
Ne4 {[%clk 0:00:22.5]} 71. Kc2 {[%clk 0:00:19.3]} 71... f2 {[%clk 0:00:22.7]}
72. Nh2 {[%clk 0:00:20.5]} 72... Ng3 {[%clk 0:00:23.7]} 73. Kd2 {[%clk
0:00:20.2]} 73... f1=Q {[%clk 0:00:24.8]} 74. Nxf1 {[%clk 0:00:21.4]} 74...
Nxf1+ {[%clk 0:00:26.7]} 75. Ke2 {[%clk 0:00:23.2]} 75... Ne3 {[%clk 0:00:27.7]}
0-1

[Event "*** Titled Tuesday 3|2 Blitz"]
[Site "Chess.com"]
[Date "2016.10.04"]
[Round "2"]
[White "Iball95"]
[Black "ftorodent"]
[Result "1/2-1/2"]
[WhiteElo "2534"]
[BlackElo "2490"]
[TimeControl "180+2"]
[EndTime "11:24:41 PDT"]
[Termination "Game drawn - insufficient material"]

1. e4 {[%clk 0:03:01.9]} 1... e6 {[%clk 0:03:00.6]} 2. d4 {[%clk 0:03:02.7]}
2... d5 {[%clk 0:03:01.4]} 3. Nc3 {[%clk 0:03:04.3]} 3... Bb4 {[%clk 0:03:01.6]}
4. exd5 {[%clk 0:03:05.4]} 4... exd5 {[%clk 0:03:02.2]} 5. Bd3 {[%clk
0:03:06.9]} 5... Ne7 {[%clk 0:02:59.6]} 6. a3 {[%clk 0:03:01.6]} 6... Bxc3+
{[%clk 0:02:59.2]} 7. bxc3 {[%clk 0:03:03.5]} 7... O-O {[%clk 0:02:52.7]} 8. Qf3
{[%clk 0:02:59.5]} 8... Be6 {[%clk 0:02:50.9]} 9. Ne2 {[%clk 0:02:58.5]} 9...
Qd7 {[%clk 0:02:51.6]} 10. O-O {[%clk 0:02:59.1]} 10... Bf5 {[%clk 0:02:52.3]}
11. h4 {[%clk 0:02:54.2]} 11... Bxd3 {[%clk 0:02:47.6]} 12. cxd3 {[%clk
0:02:56.1]} 12... Nbc6 {[%clk 0:02:41.1]} 13. Ng3 {[%clk 0:02:56.8]} 13... Rfe8
{[%clk 0:02:33.2]} 14. h5 {[%clk 0:02:57.7]} 14... h6 {[%clk 0:02:09.5]} 15. a4
{[%clk 0:02:58.4]} 15... Kh7 {[%clk 0:01:50]} 16. Ba3 {[%clk 0:02:46.3]} 16...
Ng8 {[%clk 0:01:50.9]} 17. Nf5 {[%clk 0:02:27.4]} 17... Nce7 {[%clk 0:01:49.7]}
18. Nxe7 {[%clk 0:02:12.4]} 18... Nxe7 {[%clk 0:01:50.7]} 19. Qxf7 {[%clk
0:02:12.4]} 19... Qf5 {[%clk 0:01:51.8]} 20. Qxf5+ {[%clk 0:02:07]} 20... Nxf5
{[%clk 0:01:52.6]} 21. Rfe1 {[%clk 0:02:07.6]} 21... Kg8 {[%clk 0:01:48.8]} 22.
Re5 {[%clk 0:02:04.3]} 22... Rxe5 {[%clk 0:01:45.2]} 23. dxe5 {[%clk 0:02:06.2]}
23... d4 {[%clk 0:01:43]} 24. c4 {[%clk 0:01:51.4]} 24... Kf7 {[%clk 0:01:38.2]}
25. f4 {[%clk 0:01:37.5]} 25... Ne3 {[%clk 0:01:34.6]} 26. Rb1 {[%clk
0:01:29.9]} 26... b6 {[%clk 0:01:32]} 27. Bc1 {[%clk 0:01:26.8]} 27... Ng4
{[%clk 0:01:25.8]} 28. Kf1 {[%clk 0:01:12.1]} 28... Ke6 {[%clk 0:01:20.9]} 29.
Ke2 {[%clk 0:01:13.1]} 29... Rf8 {[%clk 0:01:22.1]} 30. g3 {[%clk 0:01:04.4]}
30... Rf5 {[%clk 0:01:22.3]} 31. Bb2 {[%clk 0:00:58.1]} 31... Rxh5 {[%clk
0:00:56.1]} 32. Bxd4 {[%clk 0:00:42.9]} 32... Rh2+ {[%clk 0:00:56.7]} 33. Kf3
{[%clk 0:00:40.4]} 33... Kf5 {[%clk 0:00:53]} 34. e6 {[%clk 0:00:21.8]} 34... c5
{[%clk 0:00:24.9]} 35. Bg1 {[%clk 0:00:17.7]} 35... Rd2 {[%clk 0:00:24.5]} 36.
e7 {[%clk 0:00:18.6]} 36... Nf6 {[%clk 0:00:25.7]} 37. g4+ {[%clk 0:00:14.6]}
37... Ke6 {[%clk 0:00:25.5]} 38. Ke3 {[%clk 0:00:15.3]} 38... Ra2 {[%clk
0:00:23.8]} 39. g5 {[%clk 0:00:16.8]} 39... hxg5 {[%clk 0:00:23.9]} 40. fxg5
{[%clk 0:00:18.7]} 40... Ne8 {[%clk 0:00:25.6]} 41. d4 {[%clk 0:00:16.7]} 41...
cxd4+ {[%clk 0:00:21.3]} 42. Kxd4 {[%clk 0:00:18.6]} 42... Kxe7 {[%clk
0:00:22.9]} 43. Re1+ {[%clk 0:00:13.6]} 43... Kd7 {[%clk 0:00:24]} 44. Kd5
{[%clk 0:00:06.6]} 44... Rxa4 {[%clk 0:00:22]} 45. Rf1 {[%clk 0:00:07.9]} 45...
Ra5+ {[%clk 0:00:19.5]} 46. c5 {[%clk 0:00:09.1]} 46... Ke7 {[%clk 0:00:11.8]}
47. Kc6 {[%clk 0:00:08.4]} 47... bxc5 {[%clk 0:00:11.3]} 48. Bxc5+ {[%clk
0:00:10.3]} 48... Ke6 {[%clk 0:00:05.4]} 49. Re1+ {[%clk 0:00:11.3]} 49... Kf7
{[%clk 0:00:06.6]} 50. Re7+ {[%clk 0:00:12.6]} 50... Kg6 {[%clk 0:00:06.9]} 51.
Rxe8 {[%clk 0:00:13.7]} 51... Kxg5 {[%clk 0:00:08.2]} 52. Re5+ {[%clk
0:00:14.9]} 52... Kg6 {[%clk 0:00:08.8]} 53. Re6+ {[%clk 0:00:16]} 53... Kf5
{[%clk 0:00:09.2]} 54. Re7 {[%clk 0:00:17.2]} 54... g5 {[%clk 0:00:09.7]} 55.
Bxa7 {[%clk 0:00:18.5]} 55... Kf4 {[%clk 0:00:08.5]} 56. Rf7+ {[%clk 0:00:19.7]}
56... Kg3 {[%clk 0:00:09.2]} 57. Bc5 {[%clk 0:00:20.5]} 57... Ra2 {[%clk
0:00:08.8]} 58. Kd5 {[%clk 0:00:21.4]} 58... Re2 {[%clk 0:00:08.9]} 59. Bd4
{[%clk 0:00:19.6]} 59... g4 {[%clk 0:00:09.7]} 60. Kc4 {[%clk 0:00:21.1]} 60...
Kg2 {[%clk 0:00:09.3]} 61. Kd3 {[%clk 0:00:22.4]} 61... Re6 {[%clk 0:00:09.8]}
62. Be3 {[%clk 0:00:21.2]} 62... g3 {[%clk 0:00:10.6]} 63. Ke2 {[%clk
0:00:22.6]} 63... Re8 {[%clk 0:00:11.3]} 64. Rg7 {[%clk 0:00:23.4]} 64... Re6
{[%clk 0:00:12.1]} 65. Kd3 {[%clk 0:00:24.1]} 65... Rd6+ {[%clk 0:00:10.3]} 66.
Ke4 {[%clk 0:00:24.2]} 66... Re6+ {[%clk 0:00:11.4]} 67. Kf4 {[%clk 0:00:25.1]}
67... Rf6+ {[%clk 0:00:12.6]} 68. Ke5 {[%clk 0:00:25.4]} 68... Rf3 {[%clk
0:00:10.8]} 69. Ke4 {[%clk 0:00:26.5]} 69... Rf8 {[%clk 0:00:07]} 70. Bf4 {[%clk
0:00:27.1]} 70... Re8+ {[%clk 0:00:08.2]} 71. Kd3 {[%clk 0:00:28.2]} 71... Rd8+
{[%clk 0:00:09.3]} 72. Kc4 {[%clk 0:00:28.9]} 72... Rc8+ {[%clk 0:00:07.9]} 73.
Kd4 {[%clk 0:00:27]} 73... Rd8+ {[%clk 0:00:08.6]} 74. Ke4 {[%clk 0:00:28.4]}
74... Re8+ {[%clk 0:00:09.7]} 75. Kd3 {[%clk 0:00:27.8]} 75... Rd8+ {[%clk
0:00:09]} 76. Kc2 {[%clk 0:00:29.1]} 76... Rc8+ {[%clk 0:00:08.4]} 77. Kb2
{[%clk 0:00:30.4]} 77... Kf3 {[%clk 0:00:04.1]} 78. Bxg3 {[%clk 0:00:30.9]}
78... Rc4 {[%clk 0:00:05.6]} 79. Kb3 {[%clk 0:00:29.5]} 79... Rg4 {[%clk
0:00:06.3]} 80. Rxg4 {[%clk 0:00:26]} 80... Kxg4 {[%clk 0:00:07.3]} 1/2-1/2

[Event "*** Titled Tuesday 3|2 Blitz"]
[Site "Chess.com"]
[Date "2016.10.04"]
[Round "2"]
[White "cassoulet"]
[Black "dusanacns"]
[Result "0-1"]
[WhiteElo "2296"]
[BlackElo "2547"]
[TimeControl "180+2"]
[EndTime "11:25:19 PDT"]
[Termination "dusanacns won by resignation"]

1. e4 {[%clk 0:03:02]} 1... g6 {[%clk 0:03:01.4]} 2. d4 {[%clk 0:03:02.2]} 2...
Bg7 {[%clk 0:03:02.9]} 3. Nc3 {[%clk 0:03:03.7]} 3... d6 {[%clk 0:03:04.4]} 4.
h4 {[%clk 0:03:05.1]} 4... Nc6 {[%clk 0:03:03.2]} 5. Be3 {[%clk 0:03:05.4]} 5...
Nf6 {[%clk 0:03:02.6]} 6. Be2 {[%clk 0:03:03.7]} 6... e5 {[%clk 0:02:57.7]} 7.
d5 {[%clk 0:03:03.4]} 7... Nd4 {[%clk 0:02:58.9]} 8. Bxd4 {[%clk 0:03:04]} 8...
exd4 {[%clk 0:03:00.2]} 9. Qxd4 {[%clk 0:03:05.9]} 9... O-O {[%clk 0:03:00.6]}
10. Qd2 {[%clk 0:03:06.8]} 10... Re8 {[%clk 0:03:01.6]} 11. f3 {[%clk
0:03:08.1]} 11... Nh5 {[%clk 0:03:00.9]} 12. O-O-O {[%clk 0:03:05.7]} 12... Be5
{[%clk 0:03:01.8]} 13. Kb1 {[%clk 0:03:02.2]} 13... Ng3 {[%clk 0:03:01.8]} 14.
Rh3 {[%clk 0:02:44.2]} 14... Bxh3 {[%clk 0:03:00.8]} 15. Nxh3 {[%clk 0:02:46.1]}
15... Bxc3 {[%clk 0:02:43.7]} 16. bxc3 {[%clk 0:02:46.4]} 16... Nxe2 {[%clk
0:02:44.8]} 17. Qxe2 {[%clk 0:02:48.3]} 17... Qxh4 {[%clk 0:02:46.2]} 18. Rh1
{[%clk 0:02:49.1]} 18... f5 {[%clk 0:02:44.3]} 19. Nf2 {[%clk 0:02:49.5]} 19...
Qf6 {[%clk 0:02:45.4]} 20. Qd3 {[%clk 0:02:46.5]} 20... Re7 {[%clk 0:02:35.9]}
21. g4 {[%clk 0:02:47.4]} 21... fxe4 {[%clk 0:02:27.5]} 22. Nxe4 {[%clk
0:02:47.8]} 22... Qe5 {[%clk 0:02:28.3]} 23. g5 {[%clk 0:02:48]} 23... Rf8
{[%clk 0:02:12.6]} 24. Kb2 {[%clk 0:02:46]} 24... Kg7 {[%clk 0:02:06.8]} 25. Nf6
{[%clk 0:02:35.9]} 25... h5 {[%clk 0:01:56.2]} 26. Rxh5 {[%clk 0:02:27.4]} 26...
Rxf6 {[%clk 0:01:30.4]} 27. gxf6+ {[%clk 0:02:22.3]} 27... Qxf6 {[%clk
0:01:32.3]} 28. Rh2 {[%clk 0:02:18.7]} 28... Rf7 {[%clk 0:01:29.3]} 29. Qe3
{[%clk 0:02:16.6]} 29... Qf4 {[%clk 0:01:25.8]} 30. Qf2 {[%clk 0:02:09.5]} 30...
Rf5 {[%clk 0:01:04.1]} 31. Rh4 {[%clk 0:02:04.2]} 31... Qxf3 {[%clk 0:00:58.8]}
32. Qd4+ {[%clk 0:01:56.4]} 32... Re5 {[%clk 0:00:59.3]} 33. Qxa7 {[%clk
0:01:53]} 33... Qxd5 {[%clk 0:00:54.2]} 34. Qb8 {[%clk 0:01:53.9]} 34... Qb5+
{[%clk 0:00:35.6]} 35. Rb4 {[%clk 0:01:54.4]} 35... Qc6 {[%clk 0:00:36.9]} 36.
a4 {[%clk 0:01:47.1]} 36... b6 {[%clk 0:00:35.8]} 37. Rh4 {[%clk 0:01:47]} 37...
Rh5 {[%clk 0:00:36.8]} 38. Rf4 {[%clk 0:01:47.7]} 38... Rf5 {[%clk 0:00:34.8]}
39. Rh4 {[%clk 0:01:48.5]} 39... Rf8 {[%clk 0:00:35]} 40. Rh7+ {[%clk
0:01:46.6]} 40... Kxh7 {[%clk 0:00:36.4]} 41. Qxf8 {[%clk 0:01:47.7]} 41... Qd7
{[%clk 0:00:35.2]} 42. Qf6 {[%clk 0:01:47.3]} 42... Kh6 {[%clk 0:00:30.5]} 43.
Qh4+ {[%clk 0:01:39.7]} 43... Kg7 {[%clk 0:00:31.6]} 44. Qd4+ {[%clk 0:01:40.5]}
44... Kf7 {[%clk 0:00:32.4]} 45. Qf4+ {[%clk 0:01:41.1]} 45... Qf5 {[%clk
0:00:32]} 46. Qc4+ {[%clk 0:01:42.3]} 46... Kf6 {[%clk 0:00:30.4]} 47. Qxc7
{[%clk 0:01:43.2]} 47... Qc5 {[%clk 0:00:30.2]} 48. Qd8+ {[%clk 0:01:44.2]}
48... Kf5 {[%clk 0:00:31.1]} 49. Qf8+ {[%clk 0:01:44.9]} 49... Kg4 {[%clk
0:00:31.1]} 50. Qf6 {[%clk 0:01:37.4]} 50... g5 {[%clk 0:00:31.2]} 51. Qe6+
{[%clk 0:01:38.6]} 51... Kf4 {[%clk 0:00:32.6]} 52. Qf6+ {[%clk 0:01:38.8]}
52... Kg3 {[%clk 0:00:33.4]} 53. Qf1 {[%clk 0:01:37]} 53... g4 {[%clk
0:00:34.4]} 54. Qe1+ {[%clk 0:01:38.2]} 54... Kf3 {[%clk 0:00:35.5]} 55. Qh1+
{[%clk 0:01:38]} 55... Kf4 {[%clk 0:00:34.9]} 56. Qh6+ {[%clk 0:01:38]} 56...
Ke4 {[%clk 0:00:31]} 57. Qh1+ {[%clk 0:01:36.6]} 57... Kf4 {[%clk 0:00:22.9]}
58. Qh6+ {[%clk 0:01:37.2]} 58... Kg3 {[%clk 0:00:23.6]} 59. Qh1 {[%clk
0:01:37.7]} 59... Qe3 {[%clk 0:00:20.1]} 60. Qd5 {[%clk 0:01:34.2]} 60... Kf2
{[%clk 0:00:17.6]} 61. Qf5+ {[%clk 0:01:27.3]} 61... Qf3 {[%clk 0:00:15.9]} 62.
Qb5 {[%clk 0:01:28.1]} 62... Qe3 {[%clk 0:00:15.8]} 63. Qf5+ {[%clk 0:01:28.2]}
63... Kg3 {[%clk 0:00:17.3]} 64. Qd5 {[%clk 0:01:28]} 64... Qf4 {[%clk
0:00:16.7]} 65. Qd1 {[%clk 0:01:25.9]} 65... Kh2 {[%clk 0:00:15.4]} 66. Qe2+
{[%clk 0:01:26.5]} 66... Kh3 {[%clk 0:00:16.5]} 67. Qe6 {[%clk 0:01:23.7]} 67...
Qe5 {[%clk 0:00:17.2]} 68. Qh6+ {[%clk 0:01:20.9]} 68... Kg2 {[%clk 0:00:18.6]}
69. Qd2+ {[%clk 0:01:21.6]} 69... Kf3 {[%clk 0:00:19.7]} 70. Qd1+ {[%clk
0:01:21.9]} 70... Kf4 {[%clk 0:00:16.2]} 71. Qf1+ {[%clk 0:01:22.1]} 71... Kg5
{[%clk 0:00:16.8]} 72. Qg1 {[%clk 0:01:21.2]} 72... g3 {[%clk 0:00:17.9]} 73.
Qxb6 {[%clk 0:01:21.8]} 73... g2 {[%clk 0:00:14.4]} 74. Qg1 {[%clk 0:01:20]}
74... Qe4 {[%clk 0:00:12.9]} 75. a5 {[%clk 0:01:20.4]} 75... Qb7+ {[%clk
0:00:10.3]} 76. Kc1 {[%clk 0:01:20.8]} 76... Qf3 {[%clk 0:00:11.4]} 77. Kb2
{[%clk 0:01:18.7]} 77... Qf1 {[%clk 0:00:09.1]} 78. Qe3+ {[%clk 0:01:19.6]}
78... Kg4 {[%clk 0:00:10.7]} 79. Qe4+ {[%clk 0:01:20.9]} 79... Kg3 {[%clk
0:00:11.6]} 80. Qg6+ {[%clk 0:01:20.8]} 80... Kh2 {[%clk 0:00:11.3]} 81. Qh5+
{[%clk 0:01:21.6]} 81... Kg1 {[%clk 0:00:12.6]} 82. Qd5 {[%clk 0:01:14.8]} 82...
Qf4 {[%clk 0:00:11.9]} 83. a6 {[%clk 0:01:13.4]} 83... Kf2 {[%clk 0:00:11.9]}
84. a7 {[%clk 0:00:44.3]} 84... g1=Q {[%clk 0:00:13]} 85. a8=Q {[%clk
0:00:37.2]} 85... Qgc1+ {[%clk 0:00:13.6]} 86. Kb3 {[%clk 0:00:35.9]} 86... Qb1+
{[%clk 0:00:15]} 87. Ka3 {[%clk 0:00:34.8]} 87... Qfc1+ {[%clk 0:00:14.2]} 88.
Ka4 {[%clk 0:00:35.8]} 88... Qcxc2+ {[%clk 0:00:12.5]} 89. Ka5 {[%clk
0:00:29.6]} 89... Qxc3+ {[%clk 0:00:13.5]} 90. Ka6 {[%clk 0:00:30.9]} 90... Qa3+
{[%clk 0:00:13.3]} 91. Qa5 {[%clk 0:00:30.7]} 91... Qxa5+ {[%clk 0:00:14.1]} 92.
Kxa5 {[%clk 0:00:31.6]} 92... Qa1+ {[%clk 0:00:15.5]} 93. Kb6 {[%clk 0:00:33.2]}
93... Qxa8 {[%clk 0:00:16.9]} 0-1